[Event "Slovakia Open 2022"]
[Site "Bratislava"]
[Date "2022.10.01"]
[Round "7.30"]
[White "Nosal, Tobias"]
[Black "Csontos, Aron"]
[Result "0-1"]
[ECO "E07"]
[WhiteElo "1601"]
[BlackElo "1962"]
[Annotator "TA"]
[PlyCount "126"]
[EventDate "2022.09.30"]
[EventCountry "SVK"]
[SourceTitle "playchess.com"]
[Source "ChessBase"]
[SourceQuality "1"]
[TimeControl "2700+10"]

{[%evp 17,126,2,18,4,8,-13,-13,-13,-17,-4,4,-8,-7,-62,-71,-89,-85,-79,-84,-83,-83,-77,-33,-33,-33,-44,-19,-36,-13,-57,-13,-57,-57,-57,-57,-57,-57,-57,-27,-20,-5,-5,-6,-5,-7,-23,0,0,0,-78,-78,-78,0,-5,0,-187,-188,-186,-6,-158,0,0,0,0,0,0,0,-10,0,0,0,0,0,0,0,0,0,0,0,0,0,0,0,0,0,0,0,0,0,0,0,0,0,-12847,-12847,-27999,-27999,-27999,-27999,-27999,-27997,-27999,-27998,-27999,-27998,-27999,-27999,-27999,-27999,-27999,-27999]} 1. d4 {[%emt 0:00:03]} Nf6 {[%emt 0:00:02]} 2. c4 {[%emt 0:00:02]} e6 {[%emt 0:00:01]} 3. g3 {[%emt 0:00:10]} d5 {[%emt 0:00:04]} 4. Bg2 {[%emt 0:00:00]} Be7 {[%emt 0:00:08]} 5. Nf3 {[%emt 0:00:00]} c6 {[%emt 0:00:06]} 6. O-O {[%emt 0:00:30]} Nbd7 {[%emt 0:00:04]} 7. Nbd2 {[%emt 0:00:51]} b6 {[%emt 0:00:05]} 8. b3 {[%emt 0:00:29]} Bb7 {[%emt 0:00:03]} 9. Bb2 {[%emt 0:00:07]} O-O {[%emt 0:00:21]} 10. Re1 {[%emt 0:00:55] E07: Closed Catalan: Main Line (5 Nf3 0-0 6 0-0 Nbd7).} c5 {[%emt 0:01:08]} 11. Ne5 {[%emt 0:03:57]} cxd4 {[%emt 0:02:08]} 12. Bxd4 {[%emt 0:01:28] The position is equal.} Nxe5 {[%emt 0:01:40]} 13. Bxe5 {[%emt 0:00:03]} Qd7 {[%emt 0:00:51] [#]} 14. Rc1 $146 {[%emt 0:02:16]} ({Predecessor:} 14. e4 Rfd8 15. cxd5 exd5 16. Bxf6 Bxf6 17. e5 Be7 18. e6 fxe6 19. Bh3 {½-½ (68) Yuffa,D (2522)-Gelfand,B (2697) Moscow 2017}) 14... Rfd8 {[%emt 0:06:57]} 15. Nf3 {[%emt 0:08:29]} (15. e3 $11) 15... dxc4 $15 {[%emt 0:00:34]} 16. Qxd7 {[%emt 0:00:28]} Nxd7 {[%emt 0:00:54]} 17. Rxc4 {[%emt 0:03:02]} Bxf3 {[%emt 0:02:41]} 18. exf3 {[%emt 0:01:24]} Nxe5 {[%emt 0:02:04]} 19. Rxe5 {[%emt 0:00:31]} Rd1+ {[%emt 0:00:03]} (19... Rd2 $5 {[%cal Rd2a2]} 20. f4 Rad8 $17) 20. Bf1 {[%emt 0:00:02]} Rad8 {[%emt 0:01:00]} 21. Kg2 {[%emt 0:08:23]} g6 {[%emt 0:01:49]} (21... R8d2 {keeps more tension.} 22. Rc7 Bd6 23. Rc8+ Bf8) 22. Re2 {[%emt 0:01:48]} a5 {[%emt 0:01:27]} 23. Rec2 {[%emt 0:06:43]} Bc5 {[%emt 0:00:36]} 24. Be2 {[%emt 0:01:43]} R1d2 {[%emt 0:03:06]} 25. f4 {[%emt 0:00:54]} Kf8 {[%emt 0:01:06]} 26. Kf3 {[%emt 0:01:20]} Ke7 {[%emt 0:00:12]} 27. R4c3 {[%emt 0:01:26]} f6 {[%emt 0:01:38]} 28. Rc4 {[%emt 0:00:29]} e5 {[%emt 0:00:37]} 29. fxe5 {[%emt 0:00:22]} fxe5 {[%emt 0:00:02]} 30. Kg2 {[%emt 0:00:34]} R8d4 {[%emt 0:01:35]} 31. R4c3 {[%emt 0:01:04]} Ke6 {[%emt 0:01:06]} 32. Bc4+ {[%emt 0:00:27]} Ke7 {[%emt 0:00:37]} 33. Rxd2 {[%emt 0:00:27]} (33. Be2 $11 {keeps the balance.}) 33... Rxd2 $11 {[%emt 0:00:02][%mdl 4096] Endgame KRB-KRB} 34. Rf3 {[%emt 0:00:02]} Bd4 {[%emt 0:01:00]} ({Much weaker is} 34... Rxa2 35. b4 Ra4 36. bxc5 Rxc4 37. cxb6 $11) (34... e4 $17 35. Rf4 e3) 35. Rf7+ {[%emt 0:00:12]} Kd6 {[%emt 0:00:03]} 36. Rxh7 $2 {[%emt 0:00:18]} (36. a4 $11) 36... Rxf2+ $19 {[%emt 0:00:02]} 37. Kh3 {[%emt 0:00:01]} e4 $2 {[%emt 0:00:24]} ({Black should try} 37... Rxa2 $19 {aiming for ...Rd2.} 38. Bf7 Rb2) 38. Rh6 $2 {[%emt 0:00:16]} ({Better is} 38. a4 $1 $11) 38... Rf6 $2 {[%emt 0:00:55] Black is much more active.} ({Black should play} 38... Rxa2 $17 {Strongly threatening ...e3.} 39. Rh4 Ke5) 39. Kg4 $11 {[%emt 0:00:12]} Ke5 {[%emt 0:01:19]} 40. Rh8 {[%emt 0:00:10]} Bc5 {[%emt 0:01:31]} 41. Re8+ {[%emt 0:00:05]} Kd4 {[%emt 0:00:03]} 42. Rd8+ {[%emt 0:00:13]} Rd6 {[%emt 0:01:45]} 43. Rxd6+ {[%emt 0:00:11]} Bxd6 {[%emt 0:00:06] KB-KB} 44. Kg5 {[%emt 0:00:02]} Ke3 {[%emt 0:00:02]} 45. Kxg6 {[%emt 0:00:14]} Kf2 {[%emt 0:00:03]} 46. h4 {[%emt 0:00:14] [#] Hoping for g4.} Bxg3 {[%emt 0:00:41]} (46... e3 47. g4 Kg3 48. Kh5 $18) 47. h5 {[%emt 0:00:06] Kf5 is the strong threat.} e3 {[%emt 0:00:12]} 48. Kf5 {[%emt 0:00:14] Black must now prevent h6.} Bd6 {[%emt 0:00:15]} 49. h6 {[%emt 0:00:06] And now h7 would win.} Ba3 {[%emt 0:00:21]} 50. Ke6 {[%emt 0:00:11]} e2 {[%emt 0:00:12]} 51. Bxe2 {[%emt 0:00:03]} Kxe2 {[%emt 0:00:02] KB-K3P} 52. Kd5 {[%emt 0:00:15]} Bb2 {[%emt 0:01:48]} 53. Kc6 {[%emt 0:00:08]} Bd4 {[%emt 0:00:05]} 54. h7 {[%emt 0:00:07]} Kd3 {[%emt 0:00:02]} 55. h8=Q $4 {[%emt 0:00:13][%mdl 8192]} (55. Kd5 Kc3 56. Kc6 Kb4 $19) (55. Kb5 $11) 55... Bxh8 $19 {[%emt 0:00:03]} 56. Kxb6 {[%emt 0:00:01] KB-KPP} Bc3 {[%emt 0:00:05] Black mates.} 57. a3 {[%emt 0:00:06] [#]} Kc2 $1 {[%emt 0:00:08]} 58. b4 {[%emt 0:00:13]} Bxb4 {[%emt 0:00:01]} 59. Kb5 {[%emt 0:00:28]} Kb3 {[%emt 0:00:07]} 60. axb4 {[%emt 0:00:11]} axb4 {[%emt 0:00:03][%cal Ba5b4,Bb4b3,Bb3b2][%mdl 32]} 61. Kc5 {[%emt 0:00:07]} Kc3 {[%emt 0:00:02]} 62. Kb5 {[%emt 0:00:13]} b3 {[%emt 0:00:11]} 63. Ka4 {[%emt 0:00:02]} b2 {[%emt 0:00:00] Weighted Error Value: White=0.42/Black=0.17 (very precise)} 0-1

[Event "Slovakia Open 2022"]
[Site "Bratislava"]
[Date "2022.10.01"]
[Round "7.31"]
[White "Slivka, Vasil"]
[Black "Dolnik, Michal"]
[Result "1/2-1/2"]
[ECO "D60"]
[WhiteElo "1569"]
[BlackElo "1485"]
[Annotator "NA RC COMBH"]
[PlyCount "58"]
[EventDate "2022.09.30"]
[EventCountry "SVK"]
[SourceTitle "playchess.com"]
[Source "ChessBase"]
[SourceQuality "1"]
[TimeControl "2700+10"]

1. d4 {[%emt 0:00:05]} d5 {[%emt 0:00:01]} 2. c4 {[%emt 0:00:03]} e6 {[%emt 0:00:06]} 3. Nf3 {[%emt 0:00:02]} Nf6 {[%emt 0:00:08]} 4. Bg5 {[%emt 0:00:02]} Be7 {[%emt 0:00:11]} 5. e3 {[%emt 0:00:01]} h6 {[%emt 0:00:46]} 6. Bh4 {[%emt 0:00:06]} c6 {[%emt 0:00:31]} 7. Bd3 {[%emt 0:00:11]} Nbd7 {[%emt 0:00:11]} 8. O-O {[%emt 0:00:04]} O-O {[%emt 0:00:14]} 9. Nc3 {[%emt 0:00:16]} dxc4 {[%emt 0:00:23]} 10. Bxc4 {[%emt 0:00:03]} Nb6 {[%emt 0:00:02]} 11. Bb3 {[%emt 0:00:07]} Nfd5 {[%emt 0:00:49]} 12. Bxe7 {[%emt 0:00:09]} Qxe7 {[%emt 0:00:06]} 13. Nxd5 {[%emt 0:00:04]} exd5 {[%emt 0:00:17]} 14. Ne5 {[%emt 0:00:57]} Nd7 {[%emt 0:00:20]} 15. Nxd7 {[%emt 0:00:22]} Bxd7 {[%emt 0:00:02]} 16. Rc1 {[%emt 0:00:06]} f5 {[%emt 0:00:37]} 17. Re1 {[%emt 0:01:20]} Rf6 {[%emt 0:00:09]} 18. g3 {[%emt 0:01:08]} Be8 {[%emt 0:00:30]} 19. Bc2 {[%emt 0:00:18]} Bg6 {[%emt 0:00:30]} 20. f4 {[%emt 0:00:07]} Qe8 {[%emt 0:00:09]} 21. Qd2 {[%emt 0:00:53]} Bh5 {[%emt 0:00:22]} 22. Bd1 {[%emt 0:00:18]} Bxd1 {[%emt 0:00:20]} 23. Qxd1 {[%emt 0:00:07]} Re6 {[%emt 0:00:02]} 24. Rc3 {[%emt 0:00:03]} Qe7 {[%emt 0:00:10]} 25. Qf3 {[%emt 0:00:06]} Qb4 {[%emt 0:00:20]} 26. Re2 {[%emt 0:00:15]} Qa4 {[%emt 0:00:53]} 27. b3 {[%emt 0:00:26]} Qb4 {[%emt 0:00:14]} 28. Rc5 {[%emt 0:02:48]} Rae8 {[%emt 0:02:28]} 29. Kf2 {[%emt 0:03:34]} Qb6 {[%emt 0:05:18]} 1/2-1/2

[Event "Slovakia Open 2022"]
[Site "Bratislava"]
[Date "2022.10.01"]
[Round "7.32"]
[White "Park, Seonjae"]
[Black "Shykhnenko, Hryhorii"]
[Result "1-0"]
[ECO "A57"]
[WhiteElo "1704"]
[BlackElo "1317"]
[Annotator "NA COMBH"]
[PlyCount "43"]
[EventDate "2022.09.30"]
[EventCountry "SVK"]
[SourceTitle "playchess.com"]
[Source "ChessBase"]
[SourceQuality "1"]
[TimeControl "2700+10"]

1. d4 {[%emt 0:00:03]} Nf6 {[%emt 0:00:01]} 2. c4 {[%emt 0:00:10]} c5 {[%emt 0:00:01]} 3. d5 {[%emt 0:00:00]} b5 {[%emt 0:00:01]} 4. cxb5 {[%emt 0:00:00]} a6 {[%emt 0:00:01]} 5. e3 {[%emt 0:00:00]} g6 {[%emt 0:00:03]} 6. Nc3 {[%emt 0:00:00]} d6 {[%emt 0:00:05]} 7. Nf3 {[%emt 0:00:11]} Bg7 {[%emt 0:00:19]} 8. e4 {[%emt 0:00:17]} Nbd7 {[%emt 0:00:08]} 9. h3 {[%emt 0:00:22]} axb5 {[%emt 0:00:11]} 10. Bxb5 {[%emt 0:00:01]} O-O {[%emt 0:00:09]} 11. O-O {[%emt 0:00:05]} Ba6 {[%emt 0:00:01]} 12. Bxa6 {[%emt 0:00:08]} Rxa6 {[%emt 0:00:03]} 13. Qc2 {[%emt 0:00:13]} Qa5 {[%emt 0:00:20]} 14. Bd2 {[%emt 0:00:33]} Rb8 {[%emt 0:00:24]} 15. Rfb1 {[%emt 0:00:28]} Nb6 {[%emt 0:01:19]} 16. Be1 {[%emt 0:01:33]} Nc4 {[%emt 0:01:25]} 17. Nd2 {[%emt 0:01:41]} Nb6 {[%emt 0:06:13]} 18. Nb3 {[%emt 0:01:10]} Qb4 {[%emt 0:01:04]} 19. a3 {[%emt 0:00:10]} Qc4 {[%emt 0:00:04]} 20. Nd2 {[%emt 0:00:04]} Qd4 {[%emt 0:00:15]} 21. Nf3 {[%emt 0:00:02]} Qc4 {[%emt 0:00:52]} 22. b3 {[%emt 0:00:13]} 1-0

[Event "Slovakia Open 2022"]
[Site "Bratislava"]
[Date "2022.10.01"]
[Round "7.33"]
[White "Ruderfer, Mark B"]
[Black "Kukan, Michal"]
[Result "0-1"]
[ECO "C34"]
[WhiteElo "2236"]
[BlackElo "1767"]
[Annotator "TA"]
[PlyCount "64"]
[EventDate "2022.09.30"]
[EventCountry "SVK"]
[SourceTitle "playchess.com"]
[Source "ChessBase"]
[SourceQuality "1"]
[TimeControl "2700+10"]

{[%evp 9,64,37,67,59,48,40,82,81,285,95,98,87,101,74,78,18,80,-20,-19,-22,80,75,243,158,172,129,300,0,30,34,56,0,0,-18,-11,-156,-166,-204,-194,-193,-186,-189,-193,-208,-147,-210,-225,-593,-136,-133,-45,-33,-39,-604,-590,-29987,-358]} 1. e4 {[%emt 0:00:08]} e5 {[%emt 0:00:04]} 2. Nc3 {[%emt 0:00:04]} Nf6 {[%emt 0:00:13]} 3. f4 {[%emt 0:00:38]} d6 {[%emt 0:00:41]} 4. Nf3 {[%emt 0:00:04]} exf4 {[%emt 0:00:08]} 5. d4 {[%emt 0:00:05]} Be7 {[%emt 0:00:10]} 6. Bxf4 {[%emt 0:00:10] C34: King's Gambit Accepted: 3 Nf3: 3...Nf6 and 3...d6.} O-O {[%emt 0:00:07]} 7. Bd3 {[%emt 0:00:12]} Nh5 {[%emt 0:00:18]} 8. Be3 {[%emt 0:00:03] [#] White is better.} Bh4+ $146 {[%emt 0:00:23]} (8... Bg4 $16 {was called for.}) ({Predecessor:} 8... Bg4 9. O-O Nc6 10. Nd5 Qd7 11. b4 Rae8 12. h3 Ng3 13. hxg4 Nxf1 14. Qxf1 Qxg4 {1-0 (31) Draghici Flutur,G (2193)-Mejias Gonzalez,J (1952) Fuengirola 2009}) 9. g3 $2 {[%emt 0:01:29]} (9. Nxh4 $18 {is the precise move to win.} Qxh4+ 10. g3 Nxg3 11. Bf2) 9... Be7 {[%emt 0:00:11]} 10. Qd2 {[%emt 0:01:44]} c5 {[%emt 0:00:40]} 11. O-O-O {[%emt 0:00:22]} Bg4 {[%emt 0:00:10]} 12. Rdf1 {[%emt 0:00:29]} (12. Be2 $16) 12... a6 {[%emt 0:01:02]} (12... Nc6 $11 {remains equal.} 13. dxc5 dxc5) 13. a4 {[%emt 0:03:54]} (13. dxc5 $16 dxc5 14. e5) 13... Nc6 $11 {[%emt 0:00:29]} 14. Be2 {[%emt 0:00:10]} Qa5 {[%emt 0:02:35]} (14... Nf6 $11) 15. d5 $16 {[%emt 0:08:28]} Na7 {[%emt 0:04:29]} (15... Nb4 $16 {keeps fighting.}) 16. e5 {[%emt 0:07:01]} b5 {[%emt 0:01:49]} 17. exd6 {[%emt 0:00:52]} Bxd6 {[%emt 0:00:48]} (17... Bf6 $16) 18. Qd3 $2 {[%emt 0:04:46]} (18. Ng5 $18 Bxe2 19. Qxe2) 18... Nf6 {[%emt 0:04:00]} 19. Ng5 {[%emt 0:02:44]} (19. axb5 Nxb5 20. Nb1 c4 21. Qxc4 Rfe8 $19) 19... Bxe2 $1 {[%emt 0:04:54]} 20. Nxe2 {[%emt 0:00:17]} ({White should try} 20. Qxe2 $14 Be5 21. Bxc5 Bxc3 22. bxc3 (22. Bxf8 Rxf8 23. bxc3 Qxc3 $14) 22... Qxc3 23. Bxf8 Rxf8 24. Qd3 Qxd3 25. cxd3) 20... c4 $11 {[%emt 0:05:46]} 21. Qd4 {[%emt 0:07:51] Black must now prevent Rxf6.} Qd8 {[%emt 0:06:23] Threatens to win with ...Re8.} 22. Qh4 {[%emt 0:00:11]} (22. Nc3 $1 $11 Re8 23. Qh4 $1) 22... h6 $17 {[%emt 0:01:00]} 23. Ne4 {[%emt 0:01:16]} Nxe4 {[%emt 0:00:27]} ({Inferior is} 23... Nxd5 24. Bd4 Qxh4 25. gxh4 $11) 24. Qxe4 {[%emt 0:00:02]} Re8 {[%emt 0:00:29]} 25. Qf3 {[%emt 0:01:17]} Qe7 {[%emt 0:02:03] Active counter play!} 26. Bxa7 {[%emt 0:00:10]} Rxa7 {[%emt 0:00:10]} 27. Re1 {[%emt 0:00:43] [#]} (27. Nd4 $17) 27... Qg5+ $1 $19 {[%emt 0:00:09]} ({Stronger than} 27... bxa4 28. Nd4 Qg5+ 29. Kb1 $17) 28. Kb1 $2 {[%emt 0:00:31]} (28. Nf4 Rae7 29. Rxe7 Qxe7 30. a5) 28... bxa4 $2 {[%emt 0:00:51]} (28... Rae7 $19 {and Black stays clearly on top.} 29. Qf2 Qd2) 29. Nd4 $17 {[%emt 0:00:10]} Rxe1+ {[%emt 0:00:10]} (29... Rae7 $17 30. Rxe7 Qxe7) 30. Rxe1 $15 {[%emt 0:00:53]} Rb7 {[%emt 0:00:11] And now ...a3 would win.} 31. Nc6 $2 {[%emt 0:00:10][%mdl 8192] [#]} (31. Re8+ $15 Kh7 32. Qf5+ Qxf5 33. Nxf5) 31... a3 $1 $19 {[%emt 0:00:10] ...Bf8 is the strong threat.} 32. Qe4 {[%emt 0:02:35]} Kh8 $2 {[%emt 0:00:44] Black used his chance.  Weighted Error Value: White=0.91/Black=0.57} (32... Rxb2+ {mates} 33. Ka1 Qd2 34. Rf1 Rxc2 35. Qe8+ Bf8 36. Qxf7+ Kh7 37. Qf5+ g6 38. Qxg6+ Kxg6 39. Ne5+ Kh7 40. Rf7+ Kg8 41. Rxf8+ Kxf8 42. Nd7+ Kg7 43. h4 Qe1#) 0-1

[Event "Slovakia Open 2022"]
[Site "Bratislava"]
[Date "2022.10.01"]
[Round "7.34"]
[White "Kostic, Ivan"]
[Black "Nikpour Aryabod"]
[Result "1-0"]
[ECO "E00"]
[WhiteElo "1716"]
[BlackElo "1000"]
[Annotator "NA COMBH"]
[PlyCount "81"]
[EventDate "2022.09.30"]
[EventCountry "SVK"]
[SourceTitle "playchess.com"]
[Source "ChessBase"]
[SourceQuality "1"]
[TimeControl "2700+10"]

1. d4 {[%emt 0:00:06]} d5 {[%emt 0:00:01]} 2. e3 {[%emt 0:00:02]} Nf6 {[%emt 0:00:04]} 3. c4 {[%emt 0:00:22]} e6 {[%emt 0:00:02]} 4. a3 {[%emt 0:00:08]} Be7 {[%emt 0:00:06]} 5. Nd2 {[%emt 0:00:10]} O-O {[%emt 0:00:05]} 6. b3 {[%emt 0:00:21]} c5 {[%emt 0:00:06]} 7. dxc5 {[%emt 0:00:04]} Bxc5 {[%emt 0:00:03]} 8. b4 {[%emt 0:00:01]} Bd6 {[%emt 0:00:14]} 9. c5 {[%emt 0:00:03]} Bc7 {[%emt 0:00:08]} 10. Bb2 {[%emt 0:00:03]} e5 {[%emt 0:00:03]} 11. Ngf3 {[%emt 0:00:53]} e4 {[%emt 0:00:33]} 12. Nd4 {[%emt 0:00:30]} Nc6 {[%emt 0:00:20]} 13. N2b3 {[%emt 0:00:17]} a6 {[%emt 0:00:04]} 14. Nxc6 {[%emt 0:00:41]} bxc6 {[%emt 0:00:03]} 15. Nd4 {[%emt 0:00:06]} Bb7 {[%emt 0:01:17]} 16. g3 {[%emt 0:00:11]} Qd7 {[%emt 0:02:45]} 17. Bg2 {[%emt 0:00:13]} Rfe8 {[%emt 0:02:03]} 18. O-O {[%emt 0:00:07]} a5 {[%emt 0:04:26]} 19. Qc2 {[%emt 0:02:11]} axb4 {[%emt 0:06:23]} 20. axb4 {[%emt 0:00:05]} Ba6 {[%emt 0:02:20]} 21. Rfc1 {[%emt 0:01:33]} Bc4 {[%emt 0:01:02]} 22. Nb3 {[%emt 0:01:24]} Qf5 {[%emt 0:02:52]} 23. Nd4 {[%emt 0:02:21]} Qd7 {[%emt 0:01:30]} 24. Bf1 {[%emt 0:02:58]} Bxf1 {[%emt 0:01:13]} 25. Rxf1 {[%emt 0:00:13]} Qh3 {[%emt 0:00:05]} 26. f4 {[%emt 0:00:48]} Ng4 {[%emt 0:01:31]} 27. Rfe1 {[%emt 0:01:38]} Rxa1 {[%emt 0:03:05]} 28. Bxa1 {[%emt 0:01:31]} h5 {[%emt 0:00:10]} 29. Qg2 {[%emt 0:00:10]} Qxg2+ {[%emt 0:00:23]} 30. Kxg2 {[%emt 0:00:03]} Ra8 {[%emt 0:00:18]} 31. Bc3 {[%emt 0:04:36]} Ra3 {[%emt 0:01:39]} 32. Bd2 {[%emt 0:04:19]} Ra2 {[%emt 0:01:41]} 33. Re2 {[%emt 0:00:25]} Bd8 {[%emt 0:00:41]} 34. h3 {[%emt 0:00:13]} Nf6 {[%emt 0:00:48]} 35. Nxc6 {[%emt 0:00:54]} Bc7 {[%emt 0:00:23]} 36. Nd4 {[%emt 0:00:19]} Kf8 {[%emt 0:00:36]} 37. b5 {[%emt 0:00:35]} Ba5 {[%emt 0:00:23]} 38. Bxa5 {[%emt 0:00:13]} Rxa5 {[%emt 0:00:01]} 39. c6 {[%emt 0:00:26]} Ke8 {[%emt 0:00:17]} 40. b6 {[%emt 0:00:20]} Rc5 {[%emt 0:00:24]} 41. b7 {[%emt 0:00:20]} 1-0

[Event "Slovakia Open 2022"]
[Site "Bratislava"]
[Date "2022.10.01"]
[Round "7.35"]
[White "Nedoba, Jakub"]
[Black "Rehacek, Jan"]
[Result "1-0"]
[ECO "D10"]
[WhiteElo "1160"]
[BlackElo "1342"]
[Annotator "NA RC COMBH"]
[PlyCount "83"]
[EventDate "2022.09.30"]
[EventCountry "SVK"]
[SourceTitle "playchess.com"]
[Source "ChessBase"]
[SourceQuality "1"]
[TimeControl "2700+10"]

1. d4 {[%emt 0:00:00]} d5 {[%emt 0:00:48]} 2. c4 {[%emt 0:00:00]} Nf6 {[%emt 0:00:10]} 3. Bf4 {[%emt 0:00:00]} Bf5 {[%emt 0:00:10]} 4. Nc3 {[%emt 0:00:12]} c6 {[%emt 0:01:01]} 5. c5 {[%emt 0:00:10]} Qb6 {[%emt 0:00:10]} 6. Qb3 {[%emt 0:00:10]} e6 {[%emt 0:00:10]} 7. Nf3 {[%emt 0:00:04]} Be7 {[%emt 0:00:50]} 8. e3 {[%emt 0:00:21]} O-O {[%emt 0:00:22]} 9. Be2 {[%emt 0:00:10]} Qxb3 {[%emt 0:00:10]} 10. axb3 {[%emt 0:00:10]} Nbd7 {[%emt 0:00:10]} 11. b4 {[%emt 0:00:10]} Ne4 {[%emt 0:00:10]} 12. b5 {[%emt 0:01:08]} Rfc8 {[%emt 0:01:06]} 13. Nxe4 {[%emt 0:00:51]} Bxe4 {[%emt 0:01:23]} 14. b4 {[%emt 0:00:10]} Nf6 {[%emt 0:00:10]} 15. O-O {[%emt 0:06:08]} Nh5 {[%emt 0:00:17]} 16. Bg5 {[%emt 0:01:39]} Bxg5 {[%emt 0:01:29]} 17. Nxg5 {[%emt 0:00:43]} Bg6 {[%emt 0:00:16]} 18. g3 {[%emt 0:00:10]} h6 {[%emt 0:00:38]} 19. Nf3 {[%emt 0:00:29]} Nf6 {[%emt 0:00:44]} 20. Ne5 {[%emt 0:02:02]} Ne4 {[%emt 0:03:20]} 21. Nxg6 {[%emt 0:01:10]} fxg6 {[%emt 0:00:04]} 22. bxc6 {[%emt 0:01:25]} Rxc6 {[%emt 0:02:10]} 23. b5 {[%emt 0:02:40]} Rcc8 {[%emt 0:00:03]} 24. Rfc1 {[%emt 0:01:05]} Nd2 {[%emt 0:01:36]} 25. Rc2 {[%emt 0:02:53]} Ne4 {[%emt 0:00:54]} 26. Bd3 {[%emt 0:00:17]} g5 {[%emt 0:01:20]} 27. f3 {[%emt 0:00:41]} Nf6 {[%emt 0:00:18]} 28. Rca2 {[%emt 0:00:09]} b6 {[%emt 0:01:10]} 29. cxb6 {[%emt 0:00:18]} Rc3 {[%emt 0:00:38]} 30. b7 {[%emt 0:00:56]} Rb8 {[%emt 0:00:34]} 31. Rxa7 {[%emt 0:02:07]} Kf7 {[%emt 0:00:28]} 32. R1a6 {[%emt 0:00:10]} Rxd3 {[%emt 0:00:10]} 33. Rb6 {[%emt 0:00:14]} Nd7 {[%emt 0:00:46]} 34. Ra8 {[%emt 0:00:16]} Rc3 {[%emt 0:02:06]} 35. Rxb8 {[%emt 0:01:41]} Nxb8 {[%emt 0:00:03]} 36. Ra6 {[%emt 0:01:35]} Nxa6 {[%emt 0:02:49]} 37. bxa6 {[%emt 0:00:03]} Rb3 {[%emt 0:00:03]} 38. a7 {[%emt 0:00:15]} Rxb7 {[%emt 0:00:35]} 39. a8=Q {[%emt 0:00:05]} Rb3 {[%emt 0:00:28]} 40. e4 {[%emt 0:01:39]} Rxf3 {[%emt 0:00:13]} 41. exd5 {[%emt 0:00:26]} Re3 {[%emt 0:00:11]} 42. d6 {[%emt 0:00:32]} 1-0

[Event "Slovakia Open 2022"]
[Site "Bratislava"]
[Date "2022.10.01"]
[Round "7.36"]
[White "Rehacek, Oldrich"]
[Black "Merva Max"]
[Result "1-0"]
[ECO "A06"]
[WhiteElo "1366"]
[BlackElo "1000"]
[Annotator "NA RC COMBH"]
[PlyCount "76"]
[EventDate "2022.09.30"]
[EventCountry "SVK"]
[SourceTitle "playchess.com"]
[Source "ChessBase"]
[SourceQuality "1"]
[TimeControl "2700+10"]

1. b3 {[%emt 0:00:13]} d5 {[%emt 0:00:23]} 2. Bb2 {[%emt 0:00:03]} Nc6 {[%emt 0:00:23]} 3. e3 {[%emt 0:00:05]} Nf6 {[%emt 0:00:17]} 4. Nf3 {[%emt 0:00:17]} Bg4 {[%emt 0:00:59]} 5. Be2 {[%emt 0:00:08]} e5 {[%emt 0:00:37]} 6. Nxe5 {[%emt 0:00:40]} Nxe5 {[%emt 0:00:29]} 7. Bxe5 {[%emt 0:00:07]} Ne4 {[%emt 0:00:34]} 8. Bxg4 {[%emt 0:01:02]} Bd6 {[%emt 0:00:56]} 9. Bxd6 {[%emt 0:01:52]} Qxd6 {[%emt 0:00:33]} 10. Bf3 {[%emt 0:00:33]} Qe5 {[%emt 0:00:33]} 11. d4 {[%emt 0:00:22]} Qd6 {[%emt 0:00:40]} 12. Bxe4 {[%emt 0:00:12]} dxe4 {[%emt 0:00:38]} 13. Nd2 {[%emt 0:00:06]} Qd5 {[%emt 0:00:28]} 14. c4 {[%emt 0:00:14]} Qf5 {[%emt 0:00:37]} 15. O-O {[%emt 0:00:27]} O-O {[%emt 0:00:13]} 16. Qc2 {[%emt 0:01:04]} Rae8 {[%emt 0:00:36]} 17. c5 {[%emt 0:00:31]} c6 {[%emt 0:00:27]} 18. Nc4 {[%emt 0:00:11]} b5 {[%emt 0:00:29]} 19. Nd6 {[%emt 0:00:06]} Qd5 {[%emt 0:00:43]} 20. Nxe8 {[%emt 0:00:19]} Rxe8 {[%emt 0:00:16]} 21. a4 {[%emt 0:00:32]} b4 {[%emt 0:00:34]} 22. Qc4 {[%emt 0:00:09]} Qxc4 {[%emt 0:00:25]} 23. bxc4 {[%emt 0:00:02]} a5 {[%emt 0:00:40]} 24. d5 {[%emt 0:00:20]} cxd5 {[%emt 0:00:52]} 25. cxd5 {[%emt 0:00:03]} Rd8 {[%emt 0:00:31]} 26. d6 {[%emt 0:00:11]} Rc8 {[%emt 0:00:27]} 27. d7 {[%emt 0:00:17]} Rd8 {[%emt 0:00:18]} 28. c6 {[%emt 0:00:03]} g6 {[%emt 0:00:26]} 29. Rfd1 {[%emt 0:00:15]} b3 {[%emt 0:00:35]} 30. c7 {[%emt 0:00:09]} Rf8 {[%emt 0:00:52]} 31. d8=Q {[%emt 0:00:17]} b2 {[%emt 0:00:27]} 32. Rab1 {[%emt 0:00:10]} h5 {[%emt 0:00:27]} 33. Qxf8+ {[%emt 0:00:05]} Kxf8 {[%emt 0:00:14]} 34. c8=Q+ {[%emt 0:00:07]} Kg7 {[%emt 0:00:28]} 35. Rxb2 {[%emt 0:00:03]} h4 {[%emt 0:00:23]} 36. Rb7 {[%emt 0:00:16]} g5 {[%emt 0:00:28]} 37. Qc7 {[%emt 0:00:12]} Kg6 {[%emt 0:00:27]} 38. Qxf7+ {[%emt 0:00:07]} Kh6 {[%emt 0:00:34]} 1-0